Department family,Entity,Date,Expense type,Expense area,Supplier,Transaction number,Amount,
Department of Health,University Hospitals of Morecambe Bay NHS Foundation Trust,29-Jun-16,Beds Managed Contract,Trust Wide,ARJO HUNTLEIGH LTD,1170925,44668.1,
Department of Health,University Hospitals of Morecambe Bay NHS Foundation Trust,29-Jun-16,Healthier Lancashire Contribution,Trust Board,BLACKPOOL TEACHING HOSPITALS NHS FT,1177161,50000,
Department of Health,University Hospitals of Morecambe Bay NHS Foundation Trust,29-Jun-16,Waiting List (Additional Capacity),Surgery,BMI HEALTHCARE LTD,1167046,72171.32,
Department of Health,University Hospitals of Morecambe Bay NHS Foundation Trust,29-Jun-16,Agency Midwives,Womens & Childrens,HB RETINUE LTD,1177042,53030.8,
Department of Health,University Hospitals of Morecambe Bay NHS Foundation Trust,29-Jun-16,Agency ODPs,Theatres,HB RETINUE LTD,1177038,22347.45,
Department of Health,University Hospitals of Morecambe Bay NHS Foundation Trust,29-Jun-16,CNST Premium,Corporate,NHS LITIGATION AUTHORITY,1177745,870576,
Department of Health,University Hospitals of Morecambe Bay NHS Foundation Trust,29-Jun-16,Payroll Services,Trust Wide,NHS SHARED BUSINESS SERVICE LTD,1176227,23692.87,
Department of Health,University Hospitals of Morecambe Bay NHS Foundation Trust,29-Jun-16,NHS Product Sales,Trust Wide,NHS SUPPLY CHAIN,1176241,137297.1,
Department of Health,University Hospitals of Morecambe Bay NHS Foundation Trust,29-Jun-16,Waiting List (Additional Capacity),Surgery,SPIRE HEALTHCARE LTD,1144029,45486.51,
Department of Health,University Hospitals of Morecambe Bay NHS Foundation Trust,06-Jul-16,MRI Scans (Mobile Unit),Radiology,ALLIANCE MEDICAL LTD,1154214,22683,
Department of Health,University Hospitals of Morecambe Bay NHS Foundation Trust,06-Jul-16,MRI Scans (Mobile Unit),Radiology,ALLIANCE MEDICAL LTD,1171893,40375,
Department of Health,University Hospitals of Morecambe Bay NHS Foundation Trust,06-Jul-16,MRI Scans (Mobile Unit),Radiology,ALLIANCE MEDICAL LTD,1176143,48216,
Department of Health,University Hospitals of Morecambe Bay NHS Foundation Trust,06-Jul-16,MRI Scans (Mobile Unit),Radiology,ALLIANCE MEDICAL LTD,1177256,-22683,
Department of Health,University Hospitals of Morecambe Bay NHS Foundation Trust,06-Jul-16,MRI Scans (Mobile Unit),Radiology,ALLIANCE MEDICAL LTD,1177257,-32127.5,
Department of Health,University Hospitals of Morecambe Bay NHS Foundation Trust,06-Jul-16,Managed Service Contract,Pathology,BECKMAN COULTER UK LTD,1173606,160879.42,
Department of Health,University Hospitals of Morecambe Bay NHS Foundation Trust,06-Jul-16,Rates,Estates & Facilities,BOROUGH OF BARROW-IN-FURNESS,1179307,56741,
Department of Health,University Hospitals of Morecambe Bay NHS Foundation Trust,06-Jul-16,Managed Service Contract,Corporate,CARVETI PARTNERSHIP LTD,1179264,69551.98,
Department of Health,University Hospitals of Morecambe Bay NHS Foundation Trust,06-Jul-16,Managed Service Contract,Corporate,CARVETI PARTNERSHIP LTD,1179265,35135.89,
Department of Health,University Hospitals of Morecambe Bay NHS Foundation Trust,06-Jul-16,Speech & Language Therapy Services,Core Clinical,CUMBRIA PARTNERSHIP NHS TRUST,1179434,30800.68,
Department of Health,University Hospitals of Morecambe Bay NHS Foundation Trust,06-Jul-16,Agency Medical Staff ,Anaesthetics,DR SATPAL SINGH JABBAL ANAES LTD,1179635,27280,
Department of Health,University Hospitals of Morecambe Bay NHS Foundation Trust,06-Jul-16,Electrical Services,Capital Services,E THOMPSON & SON LTD,1178785,50185.74,
Department of Health,University Hospitals of Morecambe Bay NHS Foundation Trust,06-Jul-16,Drugs,Pharmacy,ELI LILLY & COMPANY LTD,1173725,28800,
Department of Health,University Hospitals of Morecambe Bay NHS Foundation Trust,06-Jul-16,Trust Insurance Premium,Corporate,ENSURE UK LTD,1179793,141288,
Department of Health,University Hospitals of Morecambe Bay NHS Foundation Trust,06-Jul-16,Agency Medical Staff - Management Costs,Trust Wide,HB RETINUE LTD,1177049,27850.58,
Department of Health,University Hospitals of Morecambe Bay NHS Foundation Trust,06-Jul-16,Agency Medical Staff - Management Costs,Trust Wide,HB RETINUE LTD,1178452,31275.98,
Department of Health,University Hospitals of Morecambe Bay NHS Foundation Trust,06-Jul-16,Rates,Estates & Facilities,LANCASTER CITY COUNCIL,1179286,46801,
Department of Health,University Hospitals of Morecambe Bay NHS Foundation Trust,06-Jul-16,Miantenance Contracts - Managed Service,Trust Wide,LEASEGUARD GROUP LTD,1171327,46353.91,
Department of Health,University Hospitals of Morecambe Bay NHS Foundation Trust,06-Jul-16,Blood & Blood components contract,Core Clinical,NHS BLOOD & TRANSPLANT,1179589,35908.92,
Department of Health,University Hospitals of Morecambe Bay NHS Foundation Trust,06-Jul-16,Blood & Blood components contract,Core Clinical,NHS BLOOD & TRANSPLANT,1179591,54352.67,
Department of Health,University Hospitals of Morecambe Bay NHS Foundation Trust,06-Jul-16,Prescription Recharges,Pharmacy,NHS BUSINESS SERVICES AUTHORITY,1175975,102186.4,
Department of Health,University Hospitals of Morecambe Bay NHS Foundation Trust,06-Jul-16,NHS Product Sales,Trust Wide,NHS SUPPLY CHAIN,1177469,123172.6,
Department of Health,University Hospitals of Morecambe Bay NHS Foundation Trust,06-Jul-16,Drugs,Pharmacy,ROCHE PRODUCTS LTD,1172838,44316.32,
Department of Health,University Hospitals of Morecambe Bay NHS Foundation Trust,06-Jul-16,Drugs,Pharmacy,ROCHE PRODUCTS LTD,1173179,31934.45,
Department of Health,University Hospitals of Morecambe Bay NHS Foundation Trust,06-Jul-16,Audit Assurance,Corporate,ROYAL LIVERPOOL AND BROADGREEN UNIVERSITY HOSPITALS NHS TRUST,1177885,35856,
Department of Health,University Hospitals of Morecambe Bay NHS Foundation Trust,06-Jul-16,Rates,Estates & Facilities,SOUTH LAKELAND DISTRICT COUNCIL,1179310,36654,
Department of Health,University Hospitals of Morecambe Bay NHS Foundation Trust,13-Jul-16,Agency Midwives,Womens & Childrens,HB RETINUE LTD,1180283,45477.83,
Department of Health,University Hospitals of Morecambe Bay NHS Foundation Trust,13-Jul-16,Agency Midwives,Womens & Childrens,HB RETINUE LTD,1178446,80403.42,
Department of Health,University Hospitals of Morecambe Bay NHS Foundation Trust,13-Jul-16,Electricity,Estates & Facilities,NPOWER,1181368,73644.54,
Department of Health,University Hospitals of Morecambe Bay NHS Foundation Trust,13-Jul-16,Electricity,Estates & Facilities,NPOWER,1181371,28293.84,
Department of Health,University Hospitals of Morecambe Bay NHS Foundation Trust,13-Jul-16,Electricity,Estates & Facilities,NPOWER,1181372,58822.84,
Department of Health,University Hospitals of Morecambe Bay NHS Foundation Trust,13-Jul-16,Drugs,Pharmacy,ROCHE PRODUCTS LTD,1175213,31279.34,
Department of Health,University Hospitals of Morecambe Bay NHS Foundation Trust,13-Jul-16,Drugs,Pharmacy,ROCHE PRODUCTS LTD,1176501,30555.58,
Department of Health,University Hospitals of Morecambe Bay NHS Foundation Trust,13-Jul-16,Waiting List (Additional Capacity),Surgery,SPIRE HEALTHCARE LTD,1175733,103266.4,
Department of Health,University Hospitals of Morecambe Bay NHS Foundation Trust,13-Jul-16,Recharge Specialist Registrars,Trust Wide,THE PENNINE ACUTE HOSPITALS NHS TRUST,1157912,39998.18,
Department of Health,University Hospitals of Morecambe Bay NHS Foundation Trust,13-Jul-16,Recharge Specialist Registrars,Trust Wide,THE PENNINE ACUTE HOSPITALS NHS TRUST,1179929,307000,
Department of Health,University Hospitals of Morecambe Bay NHS Foundation Trust,13-Jul-16,Recharge Specialist Registrars,Trust Wide,THE PENNINE ACUTE HOSPITALS NHS TRUST,1179930,83000,
Department of Health,University Hospitals of Morecambe Bay NHS Foundation Trust,13-Jul-16,Recharge Specialist Registrars,Trust Wide,THE PENNINE ACUTE HOSPITALS NHS TRUST,1179931,67000,
Department of Health,University Hospitals of Morecambe Bay NHS Foundation Trust,13-Jul-16,Sack Holders,Capital Services,WYBONE LTD,1174455,29954.32,
Department of Health,University Hospitals of Morecambe Bay NHS Foundation Trust,20-Jul-16,Beds Managed Contract,Trust Wide,ARJO HUNTLEIGH LTD,1176653,44668.1,
Department of Health,University Hospitals of Morecambe Bay NHS Foundation Trust,20-Jul-16,Podiatry Services,Core Clinical,BLACKPOOL TEACHING HOSPITALS NHS FT,1170281,25501,
Department of Health,University Hospitals of Morecambe Bay NHS Foundation Trust,20-Jul-16,Waiting List (Additional Capacity),Surgery,BMI HEALTHCARE LTD,1171272,81209.96,
Department of Health,University Hospitals of Morecambe Bay NHS Foundation Trust,20-Jul-16,Waiting List (Additional Capacity),Surgery,BMI HEALTHCARE LTD,1178480,97012.29,
Department of Health,University Hospitals of Morecambe Bay NHS Foundation Trust,20-Jul-16,Agency Medical Staff - Management Costs,Trust Wide,HB RETINUE LTD,1180279,33407.38,
Department of Health,University Hospitals of Morecambe Bay NHS Foundation Trust,20-Jul-16,NHS Product Sales,Trust Wide,NHS SUPPLY CHAIN,1179611,129653.1,
Department of Health,University Hospitals of Morecambe Bay NHS Foundation Trust,20-Jul-16,NHS Product Sales,Trust Wide,NHS SUPPLY CHAIN,1181367,127343.9,
Department of Health,University Hospitals of Morecambe Bay NHS Foundation Trust,27-Jul-16,MRI Scans (Mobile Unit),Radiology,ALLIANCE MEDICAL LTD,1170331,53550,
Department of Health,University Hospitals of Morecambe Bay NHS Foundation Trust,27-Jul-16,Laundry,Estates & Facilities,BERENDSEN UK LTD,1179725,44305.92,
Department of Health,University Hospitals of Morecambe Bay NHS Foundation Trust,27-Jul-16,Laundry,Estates & Facilities,BERENDSEN UK LTD,1179727,30956.26,
Department of Health,University Hospitals of Morecambe Bay NHS Foundation Trust,27-Jul-16,Hardware,Information Technology,CAPITA IT SERVICES,1178560,43018.99,
Department of Health,University Hospitals of Morecambe Bay NHS Foundation Trust,27-Jul-16,Orthotics Service,Trust Wide,CRISPIN ORTHOTICS LTD,1178416,27525.81,
Department of Health,University Hospitals of Morecambe Bay NHS Foundation Trust,27-Jul-16,Electrical Services,Capital Services,E THOMPSON & SON LTD,1184245,40471.03,
Department of Health,University Hospitals of Morecambe Bay NHS Foundation Trust,27-Jul-16,System Upgrade ,Corporate,EVOLUTIONARY SYSTEMS COMPANY LTD,1184235,30000,
Department of Health,University Hospitals of Morecambe Bay NHS Foundation Trust,27-Jul-16,Agency Medical Staff - Management Costs,Trust Wide,HB RETINUE LTD,1181884,25980.72,
Department of Health,University Hospitals of Morecambe Bay NHS Foundation Trust,27-Jul-16,Agency ODPs,Theatres,HB RETINUE LTD,1181882,20938.12,
Department of Health,University Hospitals of Morecambe Bay NHS Foundation Trust,27-Jul-16,Agency Medical Staff - Management Costs,Trust Wide,HB RETINUE LTD,1183723,45853.16,
Department of Health,University Hospitals of Morecambe Bay NHS Foundation Trust,27-Jul-16,Agency Midwives,Womens & Childrens,HB RETINUE LTD,1183722,72111.08,
Department of Health,University Hospitals of Morecambe Bay NHS Foundation Trust,27-Jul-16,Agency Nursing,Trust Wide,HB RETINUE LTD,1183725,36632.5,
Department of Health,University Hospitals of Morecambe Bay NHS Foundation Trust,27-Jul-16,Agency ODPs,Theatres,HB RETINUE LTD,1183721,23035.47,
Department of Health,University Hospitals of Morecambe Bay NHS Foundation Trust,27-Jul-16,Storage Shelving,Medical Records,MS STORAGE LTD,1153563,45564,
Department of Health,University Hospitals of Morecambe Bay NHS Foundation Trust,27-Jul-16,Prescription Recharges,Pharmacy,NHS BUSINESS SERVICES AUTHORITY,1183239,71971.85,
Department of Health,University Hospitals of Morecambe Bay NHS Foundation Trust,27-Jul-16,Payroll Services,Trust Wide,NHS SHARED BUSINESS SERVICE LTD,1183844,23692.87,
Department of Health,University Hospitals of Morecambe Bay NHS Foundation Trust,27-Jul-16,Drugs,Pharmacy,ROCHE PRODUCTS LTD,1178573,37963.99,
